bitfinex/quotes_BTCUSD_20251208
["timestamp","ask_amount","ask_price","bid_price","bid_amount"]
[1765211401009,0.001,90363.0,90362.0,0.32135873]
[1765211401651,0.001,90363.0,90362.0,0.31586873]
[1765211401870,0.002,90363.0,90362.0,0.22276484]
[1765211402486,0.05515,90363.0,90362.0,0.22133197]
[1765211402687,0.05515,90363.0,90361.0,0.23240114]
[1765211402688,0.05515,90363.0,90339.0,0.00936]
[1765211402689,0.01106819,90349.0,90339.0,0.00936]
[1765211402900,0.03862,90351.0,90349.0,0.22136257]
[1765211403097,0.03862,90351.0,90348.0,0.232434]
[1765211403307,0.07758,90350.0,90349.0,0.22136348]
[1765211403510,0.03862,90351.0,90349.0,0.22136348]
[1765211403714,0.01106819,90349.0,90346.0,0.01106855]
[1765211403918,0.07534599,90347.0,90346.0,0.01106855]
[1765211404122,0.11396599,90347.0,90346.0,0.01106855]
[1765211404367,0.09177,90347.0,90346.0,0.01106855]
[1765211404724,0.03862,90347.0,90346.0,0.01106855]
[1765211405466,0.09177,90347.0,90346.0,0.01106855]
[1765211406015,0.09177,90347.0,90341.0,0.22138225]
[1765211406016,0.01107002,90334.0,90320.0,0.00099999]
[1765211406218,0.03862,90330.0,90328.0,0.22141314]
[1765211406423,0.05315,90329.0,90328.0,0.22141314]
[1765211406866,0.03862,90347.0,90343.0,0.01106892]
[1765211407090,0.03862,90347.0,90344.0,0.23244337]
[1765211407091,2.0065,90345.0,90344.0,0.23244337]
[1765211407369,0.9049,90345.0,90344.0,0.23244337]
[1765211407519,0.95805,90345.0,90344.0,0.23244337]
[1765211407722,0.0110699,90335.0,90330.0,0.00099999]
[1765211408006,0.0110699,90335.0,90328.0,0.01107076]
[1765211408007,0.09177,90331.0,90328.0,0.01107076]
[1765211408206,0.05315,90329.0,90328.0,0.23248604]
[1765211408758,0.05315,90329.0,90328.0,0.32326923]
[1765211409109,0.14180064,90329.0,90325.0,0.01107113]
[1765211409300,0.05315,90325.0,90324.0,0.22142509]
[1765211410153,0.05315,90325.0,90320.0,0.01207173]
[1765211410154,0.01107137,90323.0,90320.0,0.00099999]
[1765211410437,0.09177,90321.0,90317.0,0.23251324]
[1765211410617,0.09177,90321.0,90320.0,0.22143489]
[1765211411256,0.16935,90321.0,90314.0,0.01107248]
[1765211411460,0.05315,90316.0,90312.0,0.01107272]
[1765211411658,0.05315,90316.0,90310.0,0.23253238]
[1765211411659,0.05315,90311.0,90310.0,0.23253238]
[1765211411874,0.07758,90317.0,90314.0,0.01107248]
[1765211412087,0.08865211,90317.0,90311.0,0.2214555]
[1765211412295,0.08865211,90317.0,90309.0,0.2214618]
[1765211412296,0.05177,90311.0,90309.0,0.2214618]
[1765211412498,0.08866,90310.0,90309.0,0.2214618]
[1765211412700,0.08866,90310.0,90308.0,0.23253468]
[1765211412900,0.05177,90309.0,90308.0,0.23253468]
[1765211413103,0.05177,90309.0,90307.0,0.23253932]
[1765211413327,0.05177,90308.0,90307.0,0.23253932]
[1765211413528,0.03689,90310.0,90309.0,0.22146186]
[1765211413867,0.03689,90310.0,90309.0,0.22289473]
[1765211413991,8.626e-05,90311.0,90309.0,0.22289473]
[1765211414188,8.626e-05,90311.0,90310.0,0.22145941]
[1765211414401,8.626e-05,90311.0,90310.0,0.31980508]
[1765211414604,8.626e-05,90311.0,90310.0,0.22289228]
[1765211415418,0.00108626,90311.0,90310.0,0.22289228]
[1765211416060,0.05285626,90311.0,90310.0,0.00143287]
[1765211416272,0.13144626,90311.0,90310.0,0.00143287]
[1765211416908,0.13144626,90311.0,90308.0,0.01107321]
[1765211417128,0.05177,90309.0,90308.0,0.23253661]
[1765211417365,8.626e-05,90311.0,90310.0,0.22145941]
[1765211417601,0.05185626,90311.0,90310.0,0.22145941]
[1765211418623,0.05385626,90311.0,90310.0,0.22145941]
[1765211418882,0.13344626,90311.0,90310.0,0.22145941]
[1765211419030,0.13444626,90311.0,90310.0,0.22145941]
[1765211420986,0.00308626,90311.0,90310.0,0.22588228]
[1765211421339,0.00308626,90311.0,90310.0,0.22289228]
[1765211421860,8.626e-05,90311.0,90310.0,0.22289228]
[1765211422082,8.626e-05,90311.0,90310.0,0.22389228]
[1765211422225,8.626e-05,90311.0,90310.0,0.3039013]
[1765211422408,8.626e-05,90311.0,90310.0,0.22688228]
[1765211422617,8.626e-05,90311.0,90310.0,0.22987228]
[1765211422818,8.626e-05,90311.0,90310.0,0.22688228]
[1765211423282,8.626e-05,90311.0,90310.0,0.22987228]
[1765211424259,8.626e-05,90311.0,90310.0,0.25207228]
[1765211424467,8.626e-05,90311.0,90310.0,0.35190491]
[1765211425327,8.626e-05,90311.0,90310.0,0.4320279]
[1765211426311,8.626e-05,90311.0,90310.0,0.4410279]
[1765211426721,0.00108626,90311.0,90310.0,0.4360279]
[1765211426962,0.00108626,90311.0,90310.0,0.4500279]
[1765211427166,8.626e-05,90311.0,90310.0,0.4450279]
[1765211427526,0.00108626,90311.0,90310.0,0.4520279]
[1765211428143,0.01031144,90345.0,90344.0,0.22137607]
[1765211428343,0.37020144,90357.0,90356.0,0.22134667]
[1765211428643,0.01039775,90357.0,90356.0,0.22134667]
[1765211428851,8.631e-05,90357.0,90356.0,0.22134667]
[1765211429058,8.631e-05,90357.0,90356.0,0.27968857]
[1765211429260,8.631e-05,90357.0,90356.0,0.27813144]
[1765211429688,0.00508631,90357.0,90356.0,0.22277954]
[1765211429915,0.00308631,90357.0,90356.0,0.22277954]
[1765211430530,0.00308631,90357.0,90356.0,0.22576954]
[1765211430737,0.00508631,90357.0,90356.0,0.22875954]
[1765211430935,0.00508631,90357.0,90356.0,0.22277954]
[1765211431267,0.00308631,90357.0,90356.0,0.22875954]
[1765211431473,8.631e-05,90357.0,90356.0,0.22875954]
[1765211431679,8.631e-05,90357.0,90356.0,0.22576954]
[1765211432013,8.631e-05,90357.0,90356.0,0.22875954]
[1765211432247,8.631e-05,90357.0,90356.0,0.32257574]
[1765211432451,8.631e-05,90357.0,90356.0,0.34477574]
[1765211432661,0.00108631,90357.0,90356.0,0.34477574]
[1765211433070,8.631e-05,90357.0,90356.0,0.34477574]
[1765211433500,8.631e-05,90357.0,90356.0,0.34877574]
[1765211433718,0.01031144,90387.0,90384.0,0.2212781]
[1765211433935,0.00023823,90398.0,90397.0,0.00299]
[1765211434159,0.00035509,90398.0,90397.0,0.02501287]
[1765211434391,0.0103263,90407.0,90398.0,0.22124383]
[1765211434598,0.0002,90410.0,90409.0,0.22121691]
[1765211434811,0.0002,90410.0,90409.0,0.29122882]
[1765211436120,0.0002,90410.0,90409.0,0.31342882]
[1765211436529,0.00055729,90410.0,90409.0,0.31742882]
[1765211436988,0.00055729,90410.0,90409.0,0.64042882]
[1765211437190,0.02973467,90441.0,90419.0,0.56639244]
[1765211437401,0.12707361,90461.0,90419.0,0.56639244]
[1765211437402,0.02973467,90447.0,90419.0,0.66639661]
[1765211437823,0.02973467,90452.0,90419.0,0.66639661]
[1765211438465,0.03965481,90457.0,90439.0,0.22114353]
[1765211438466,0.02973467,90457.0,90439.0,0.22114353]
[1765211438675,0.00031684,90440.0,90439.0,0.2401764]
[1765211439292,0.00031684,90440.0,90439.0,0.2225764]
[1765211439495,0.00031684,90440.0,90439.0,0.2401764]
[1765211439909,0.00031684,90440.0,90439.0,0.2225764]
[1765211440134,0.00131684,90440.0,90439.0,0.2225764]
[1765211440282,0.00131684,90440.0,90439.0,0.27314025]
[1765211440489,0.00031684,90440.0,90439.0,0.27314025]
[1765211440963,0.00131684,90440.0,90439.0,0.27314025]
[1765211441555,0.00131684,90440.0,90439.0,0.29534025]
[1765211442115,0.00031684,90440.0,90439.0,0.29534025]
[1765211442541,0.00231684,90440.0,90439.0,0.29534025]
[1765211443100,0.00231684,90440.0,90439.0,0.27314025]
[1765211443305,0.00031684,90440.0,90439.0,0.27314025]
[1765211443498,0.00031684,90440.0,90439.0,0.27414025]
[1765211443747,0.00120972,90440.0,90439.0,0.2235764]
[1765211444166,0.05041972,90440.0,90439.0,0.2225764]
[1765211444376,0.00120972,90440.0,90439.0,0.2225764]
[1765211444958,0.00120972,90440.0,90439.0,0.29127531]
[1765211445385,0.00320972,90440.0,90439.0,0.29127531]
[1765211445760,0.00120972,90440.0,90439.0,0.2225764]
[1765211446172,0.00420972,90440.0,90439.0,0.2225764]
[1765211446370,0.00420972,90440.0,90439.0,0.22114353]
[1765211446606,0.05041972,90440.0,90439.0,0.22114353]
[1765211446965,0.00420972,90440.0,90439.0,0.22114353]
[1765211447207,0.00420972,90440.0,90439.0,0.28969915]
[1765211447390,0.00420972,90440.0,90439.0,0.29113202]
[1765211448299,0.00120972,90440.0,90439.0,0.29113202]
[1765211448504,0.00420972,90440.0,90439.0,0.29113202]
[1765211449110,0.00120972,90440.0,90439.0,0.29113202]
[1765211449485,0.00320972,90440.0,90439.0,0.29113202]
[1765211449704,0.00320972,90440.0,90439.0,0.31333202]
[1765211449916,1e-08,90440.0,90439.0,0.31333202]
[1765211450121,0.06662467,90478.0,90439.0,0.31333202]
[1765211450122,0.01024391,90477.0,90449.0,0.24331908]
[1765211450357,0.00058931,90450.0,90449.0,0.33307978]
[1765211450522,0.00058931,90450.0,90449.0,0.31087978]
[1765211450731,0.00058931,90450.0,90449.0,0.33307978]
[1765211450953,0.00058931,90450.0,90449.0,0.31087978]
[1765211451170,1e-08,90450.0,90449.0,0.33307978]
[1765211451384,1e-08,90450.0,90449.0,0.31087978]
[1765211451585,1e-08,90450.0,90449.0,0.33307978]
[1765211452243,0.2034,90449.0,90448.0,0.22112152]
[1765211452601,5.0,90447.0,90443.0,0.22113375]
[1765211452813,0.01956001,90450.0,90445.0,0.01105644]
[1765211453030,0.01956001,90450.0,90440.0,0.00099999]
[1765211453240,0.01956001,90450.0,90439.0,0.01105717]
[1765211453241,0.01105742,90437.0,90431.0,0.03317445]
[1765211453450,0.01105742,90437.0,90430.0,0.00099999]
[1765211453451,0.9718,90448.0,90441.0,0.01105693]
[1765211453658,0.01105619,90447.0,90440.0,0.01105705]
[1765211453864,0.23219219,90443.0,90441.0,0.04644078]
[1765211454076,0.08582619,90447.0,90433.0,0.23221485]
[1765211454077,0.01105717,90439.0,90433.0,0.23221485]
[1765211454286,0.01105717,90439.0,90435.0,0.23220924]
[1765211454500,0.23219636,90441.0,90437.0,0.22114842]
[1765211454723,0.01105729,90438.0,90434.0,0.01105778]
[1765211454941,0.01105864,90427.0,90423.0,0.0176]
[1765211455151,0.07892,90424.0,90421.0,0.01105937]
[1765211455361,0.2211876,90421.0,90418.0,0.01105974]
[1765211455568,0.2211876,90421.0,90410.0,0.00099999]
[1765211455569,0.04921,90418.0,90415.0,0.23226067]
[1765211455797,0.01106047,90412.0,90408.0,0.01106096]
[1765211456048,0.01106157,90403.0,90393.0,0.0110628]
[1765211456260,0.01106157,90403.0,90397.0,0.01106231]
[1765211456480,0.01106096,90408.0,90404.0,0.01106145]
[1765211456688,0.23228392,90407.0,90403.0,0.01106157]
[1765211456896,0.01106194,90400.0,90397.0,0.0003893]
[1765211457108,0.04921,90398.0,90397.0,0.0003893]
[1765211457560,0.04921,90398.0,90385.0,0.22127336]
[1765211457561,0.22126153,90391.0,90385.0,0.22127336]
[1765211457774,0.23233309,90388.0,90385.0,0.00011684]
[1765211457986,0.04921,90386.0,90385.0,0.00011684]
[1765211459454,0.05321,90386.0,90385.0,0.00011684]
[1765211459659,0.12854,90386.0,90385.0,0.00011684]
[1765211459869,5.15073599,90386.0,90385.0,0.00011684]
[1765211460078,5.4857133,90386.0,90385.0,0.00011684]
[1765211460495,0.23239517,90364.0,90360.0,0.0403475]
[1765211460701,0.04881,90361.0,90360.0,0.00011686]
[1765211460905,0.12414,90361.0,90360.0,0.00011686]
[1765211461334,0.03519,90363.0,90360.0,0.00011686]
[1765211461536,0.5461,90362.0,90361.0,0.22133442]
[1765211462165,0.04881,90362.0,90360.0,0.23252047]
[1765211462378,0.04881,90361.0,90360.0,0.00011686]
[1765211462562,5.34547442,90361.0,90360.0,0.00011686]
[1765211462774,5.36767041,90361.0,90360.0,0.00011686]
[1765211463174,4.07743599,90361.0,90360.0,0.00011686]
[1765211463377,0.87211,90361.0,90360.0,0.22145373]
[1765211463583,0.8233,90361.0,90360.0,0.22145373]
[1765211463813,0.0176,90361.0,90360.0,0.22145373]
[1765211464016,0.15815242,90374.0,90369.0,0.01106574]
[1765211464017,0.07533,90374.0,90369.0,0.01106574]
[1765211464219,0.01106476,90377.0,90369.0,0.01106574]
[1765211464220,0.0176,90375.0,90374.0,0.22130258]
[1765211464411,0.0176,90375.0,90372.0,0.01106537]
[1765211464597,5.0,90372.0,90370.0,0.0120656]
[1765211464799,1.08539599,90372.0,90371.0,0.23237542]
[1765211465016,0.0176,90375.0,90374.0,0.22130258]
[1765211465421,0.0236,90375.0,90374.0,0.22130258]
[1765211465623,0.0176,90375.0,90374.0,0.22130258]
[1765211466033,0.14174,90375.0,90374.0,0.22130258]
[1765211466257,0.06641,90375.0,90374.0,0.22130258]
[1765211466673,0.14174,90375.0,90373.0,0.2213044]
[1765211466880,5.22133442,90361.0,90345.0,0.22137169]
[1765211467096,5.28774442,90361.0,90350.0,0.00099999]
[1765211467302,5.70827041,90361.0,90351.0,0.01106794]
[1765211467510,5.70827041,90361.0,90350.0,0.23342755]
[1765211467511,5.70827041,90361.0,90352.0,0.23242331]
[1765211467713,5.36437041,90361.0,90353.0,0.0110677]
[1765211467907,5.70827041,90361.0,90350.0,0.22235966]
[1765211468108,5.71027041,90361.0,90352.0,0.01106782]
[1765211468342,5.71427041,90361.0,90352.0,0.23242305]
[1765211468552,5.69007442,90361.0,90351.0,0.01106794]
[1765211468779,5.71227041,90361.0,90350.0,0.01206805]
[1765211468991,5.04793599,90361.0,90357.0,0.01106721]
[1765211469198,3.34373599,90361.0,90358.0,0.01106708]
[1765211469419,0.33,90361.0,90359.0,0.22133871]
[1765211469666,0.3476,90361.0,90359.0,0.22133871]
[1765211469883,1.06604,90361.0,90358.0,0.23240758]
[1765211470089,1.06604,90361.0,90359.0,0.22133752]
[1765211470090,0.323,90361.0,90359.0,0.22133752]
[1765211470309,0.0216,90361.0,90360.0,0.00154973]
[1765211470444,0.003,90361.0,90360.0,0.00154973]
[1765211470844,0.005,90361.0,90360.0,0.00154973]
[1765211471049,0.005,90361.0,90360.0,0.02030096]
[1765211471373,0.002,90361.0,90360.0,0.04139427]
[1765211471567,0.0176,90386.0,90385.0,0.01106378]
[1765211471750,0.01106194,90400.0,90393.0,0.0110628]
[1765211471953,0.05553987,90403.0,90390.0,0.00099999]
[1765211471954,0.09293,90395.0,90391.0,0.2323236]
[1765211472172,0.0444783,90403.0,90391.0,0.2323236]
[1765211472173,0.3340617,90402.0,90395.0,0.22125117]
[1765211472500,0.27677189,90403.0,90395.0,0.22125117]
[1765211472501,0.05279,90396.0,90395.0,0.22125117]
[1765211472713,1.7158,90410.0,90408.0,0.01106096]
[1765211472918,5.2212197,90408.0,90404.0,0.23229011]
[1765211473120,0.04921,90405.0,90404.0,0.23229011]
[1765211473480,0.12094,90405.0,90404.0,0.23229011]
[1765211473932,0.04921,90405.0,90404.0,0.23229011]
[1765211474070,0.009,90408.0,90407.0,0.2212218]
[1765211474275,0.004,90408.0,90407.0,0.2212218]
[1765211474746,0.05728,90411.0,90410.0,0.22121446]
[1765211474946,0.07173,90410.0,90407.0,0.01106109]
[1765211475146,5.0,90399.0,90393.0,0.0110628]
[1765211475379,2.1678,90398.0,90396.0,0.23231014]
[1765211475582,0.005,90408.0,90407.0,0.2212218]
[1765211475757,0.02264,90408.0,90407.0,0.2212218]
[1765211476370,0.01764,90408.0,90407.0,0.2212218]
[1765211476851,0.04268,90411.0,90410.0,0.22121446]
[1765211477053,0.05732,90411.0,90410.0,0.22121446]
[1765211477255,0.05732,90411.0,90409.0,0.22121691]
[1765211477256,0.10653,90411.0,90409.0,0.22121691]
[1765211477462,0.12094,90410.0,90409.0,0.22121691]
[1765211478293,0.03325708,90407.0,90380.0,0.01764]
[1765211478498,0.01106206,90399.0,90395.0,0.01106255]
[1765211478718,0.04921,90394.0,90393.0,0.22137264]
[1765211478934,0.04921,90394.0,90393.0,0.00011686]
[1765211478935,5.50222599,90394.0,90393.0,0.00011686]
[1765211479138,4.79012599,90394.0,90393.0,0.00011686]
[1765211479259,4.66532599,90394.0,90393.0,0.00011686]
[1765211480235,5.06722599,90394.0,90393.0,0.00011686]
[1765211480426,5.07122599,90394.0,90393.0,0.00011686]
[1765211480648,5.05203,90394.0,90393.0,0.00011686]
[1765211480783,5.07422599,90394.0,90393.0,0.00011686]
[1765211481097,5.50922599,90394.0,90393.0,0.00011686]
[1765211481339,4.35802599,90394.0,90393.0,0.00011686]
[1765211481747,1.39893,90394.0,90393.0,0.00011686]
[1765211481948,1.42112599,90394.0,90393.0,0.00011686]
[1765211482150,0.003,90394.0,90393.0,0.00011686]
[1765211482360,0.003,90394.0,90393.0,0.22137293]
[1765211482601,0.002,90394.0,90393.0,0.22137293]
[1765211483007,0.14058,90394.0,90393.0,0.00011686]
[1765211483240,0.13858,90394.0,90393.0,0.00011686]
[1765211483461,5.14258,90394.0,90393.0,0.00011686]
[1765211483671,5.46558,90394.0,90393.0,0.00011686]
[1765211483820,5.46558,90394.0,90379.0,0.23235453]
[1765211483821,5.0,90381.0,90379.0,0.23235453]
[1765211484024,0.5343,90386.0,90385.0,0.01106378]
[1765211484347,0.8922,90385.0,90381.0,0.23234824]
[1765211484557,0.8922,90385.0,90380.0,0.00099999]
[1765211484558,5.02219599,90380.0,90377.0,0.23235868]
[1765211484792,4.2801,90379.0,90378.0,0.22129178]
[1765211484998,3.18083,90379.0,90378.0,0.22129178]
[1765211485181,5.0,90378.0,90377.0,0.01106476]
[1765211485426,5.12094,90378.0,90377.0,0.01106476]
[1765211485629,0.12094,90378.0,90377.0,0.01106476]
[1765211485814,2.64024,90378.0,90377.0,0.01106476]
[1765211486061,0.874,90378.0,90377.0,0.01106476]
[1765211486287,0.00011667,90386.0,90385.0,0.22127565]
[1765211486739,0.00011667,90386.0,90385.0,0.22270852]
[1765211486944,0.04932667,90386.0,90385.0,0.22270852]
[1765211487148,0.00011667,90386.0,90385.0,0.22270852]
[1765211487571,0.00011667,90386.0,90385.0,0.22570852]
[1765211488652,0.00011667,90386.0,90385.0,0.22270852]
[1765211489000,0.00011667,90386.0,90385.0,0.22770852]
[1765211489206,0.00011667,90386.0,90385.0,0.24490852]
[1765211489373,0.00011667,90386.0,90385.0,0.22270852]
[1765211489572,0.00011667,90386.0,90385.0,0.32482553]
[1765211489773,0.00011667,90386.0,90385.0,0.31982553]
[1765211490203,0.10782,90432.0,90422.0,0.2211851]
[1765211490412,0.05294684,90423.0,90422.0,0.2211851]
[1765211490611,0.00011684,90423.0,90422.0,0.2211851]
[1765211490839,0.14325283,90423.0,90422.0,0.2211851]
[1765211491161,0.14325283,90423.0,90417.0,0.01105986]
[1765211491162,5.0,90422.0,90418.0,0.22119474]
[1765211491382,5.0,90421.0,90418.0,0.23225296]
[1765211491606,0.04921,90419.0,90418.0,0.23225296]
[1765211491756,0.04921,90419.0,90417.0,0.2211964]
[1765211492076,0.0486237,90419.0,90417.0,0.2211964]
[1765211492309,0.42741684,90423.0,90422.0,0.2211851]
[1765211492428,0.42741684,90423.0,90417.0,0.05333995]
[1765211492429,0.01764,90418.0,90417.0,0.01105986]
[1765211493190,0.13858,90418.0,90417.0,0.002]
[1765211493398,0.13858,90418.0,90411.0,0.0110606]
[1765211493399,0.03325585,90417.0,90413.0,0.01106035]
[1765211493597,0.22119978,90416.0,90413.0,0.2322663]
[1765211493834,0.22119978,90416.0,90402.0,0.22123388]
[1765211493835,0.02219599,90410.0,90405.0,0.01106133]
[1765211494037,0.02219599,90410.0,90406.0,0.01106121]
[1765211494038,5.0,90409.0,90406.0,0.01106121]
[1765211494166,0.03609,90409.0,90407.0,0.22122062]
[1765211494364,0.07173,90408.0,90407.0,0.22122062]
[1765211494569,0.12094,90408.0,90407.0,0.22122062]
[1765211495190,0.12094,90408.0,90407.0,0.22622062]
[1765211495583,0.12094,90408.0,90407.0,0.22122062]
[1765211495784,0.12094,90408.0,90407.0,0.22622062]
[1765211495980,0.12094,90408.0,90407.0,0.006]
[1765211496628,0.12094,90408.0,90406.0,0.22122353]
[1765211496818,0.03609,90409.0,90406.0,0.22122353]
[1765211496819,0.13854,90407.0,90406.0,0.01532487]
[1765211497017,0.13854,90407.0,90405.0,0.23228635]
[1765211497215,0.12094,90406.0,90405.0,0.23228635]
[1765211498035,0.04921,90406.0,90405.0,0.23228635]
[1765211498226,0.12094,90406.0,90405.0,0.23228635]
[1765211498428,0.12094,90406.0,90405.0,0.23628635]
[1765211499030,0.03609,90417.0,90416.0,0.22119978]
[1765211499235,0.05369,90417.0,90416.0,0.22119978]
[1765211499634,0.1029,90417.0,90416.0,0.22119978]
[1765211499955,0.05369,90417.0,90416.0,0.22119978]
[1765211500156,0.1029,90417.0,90416.0,0.22119978]
[1765211501176,0.1049,90417.0,90416.0,0.22119978]
[1765211501607,0.17663,90417.0,90416.0,0.001]
[1765211502346,5.17463,90417.0,90414.0,0.01106023]
[1765211502513,5.07392,90416.0,90415.0,0.22120106]
[1765211502705,0.04774,90415.0,90410.0,0.00099999]
[1765211502933,0.04774,90411.0,90409.0,0.23227637]
[1765211503136,0.07392,90415.0,90406.0,0.01106121]
[1765211503137,5.232278,90409.0,90406.0,0.01106121]
[1765211503317,0.04774,90406.0,90404.0,0.2322882]
[1765211503524,0.04774,90405.0,90404.0,0.01106145]
[1765211503956,0.12166,90405.0,90404.0,0.01106145]
[1765211504329,0.12166,90405.0,90404.0,0.23229059]
[1765211504983,0.12166,90405.0,90404.0,0.23629059]
[1765211505143,0.13926,90405.0,90404.0,0.23629059]
[1765211505552,0.16145599,90405.0,90404.0,0.23629059]
[1765211506116,0.13926,90405.0,90404.0,0.22522914]
[1765211506654,0.06534,90405.0,90404.0,0.22522914]
[1765211506879,0.13926,90405.0,90404.0,0.22522914]
[1765211507074,0.3604867,90405.0,90404.0,0.004]
[1765211507283,5.3604867,90405.0,90404.0,0.004]
[1765211507461,5.38268269,90405.0,90404.0,0.004]
[1765211508046,0.3428867,90405.0,90404.0,0.004]
[1765211508230,1.0156867,90405.0,90404.0,0.004]
[1765211508854,0.23231125,90396.0,90392.0,0.01106292]
[1765211509107,0.02219599,90398.0,90395.0,0.22125099]
[1765211509108,5.0,90397.0,90395.0,0.22125099]
[1765211509314,5.0,90397.0,90394.0,0.23231575]
[1765211509518,0.3197,90397.0,90396.0,0.22124872]
[1765211509729,0.41562,90397.0,90396.0,0.22124872]
[1765211509922,0.46336,90397.0,90396.0,0.22124872]
[1765211510980,0.46436,90397.0,90396.0,0.22124872]
[1765211511180,0.46436,90397.0,90396.0,0.22324872]
[1765211513011,0.3427,90397.0,90396.0,0.3175823]
[1765211513225,0.001,90397.0,90396.0,0.31901517]
[1765211513429,0.12266,90397.0,90396.0,0.22468159]
[1765211513834,0.04874,90397.0,90396.0,0.22468159]
[1765211514598,0.001,90397.0,90396.0,0.22468159]
[1765211515365,0.001,90397.0,90396.0,0.24688159]
[1765211515941,0.0176,90419.0,90418.0,0.22119489]
[1765211516544,0.06534,90419.0,90418.0,0.22119489]
[1765211516727,0.13926,90419.0,90418.0,0.22119489]
[1765211516930,0.14126,90419.0,90418.0,0.22119489]
[1765211517729,0.06734,90419.0,90418.0,0.22119489]
[1765211517939,0.14126,90419.0,90418.0,0.22119489]
[1765211518920,0.14126,90419.0,90417.0,0.2322572]
[1765211519130,0.12166,90418.0,90417.0,0.2322561]
[1765211520526,0.04774,90418.0,90417.0,0.2322561]
[1765211521696,0.04774,90418.0,90417.0,0.30976471]
[1765211521906,0.22120525,90414.0,90410.0,0.01206071]
[1765211522076,0.0110617,90402.0,90397.0,0.22124495]
[1765211522438,0.323,90410.0,90408.0,0.22121735]
[1765211522723,0.323,90410.0,90404.0,0.01106145]
[1765211522724,0.04774,90398.0,90395.0,0.01106255]
[1765211522969,0.04774,90398.0,90397.0,0.22124628]
[1765211523171,0.01106096,90408.0,90397.0,0.22124628]
[1765211523172,0.01106096,90408.0,90404.0,0.01106145]
[1765211523392,0.07392,90404.0,90403.0,0.01106157]
[1765211523585,0.12166,90404.0,90403.0,0.01106157]
[1765211523788,0.23229316,90403.0,90400.0,0.23230054]
[1765211523917,0.07392,90403.0,90401.0,0.23229831]
[1765211524120,0.23228584,90406.0,90401.0,0.01106182]
[1765211524344,0.01106121,90406.0,90403.0,0.01106157]
[1765211524541,0.01106109,90407.0,90403.0,0.01106157]
[1765211524743,0.01106157,90403.0,90400.0,0.01106194]
[1765211524948,0.04774,90401.0,90400.0,0.22123893]
[1765211525167,0.04774,90401.0,90400.0,0.23230087]
[1765211525374,0.12166,90401.0,90400.0,0.23230087]
[1765211526315,0.0176,90401.0,90400.0,0.23330087]
[1765211526500,0.01105876,90426.0,90420.0,0.0110595]
[1765211526660,0.0176,90422.0,90420.0,0.23224907]
[1765211526854,0.36938,90421.0,90420.0,0.23224907]
[1765211527058,0.43908,90421.0,90420.0,0.23224907]
[1765211527705,0.36938,90421.0,90420.0,0.23224907]
[1765211527934,0.06398,90421.0,90420.0,0.23224907]
[1765211528065,0.06398,90421.0,90420.0,0.23324907]
[1765211528266,0.13368,90421.0,90420.0,0.22219]
[1765211528488,0.13468,90421.0,90420.0,0.22219]
[1765211528689,0.13468,90421.0,90420.0,0.22119]
[1765211529013,0.13668,90421.0,90419.0,0.22119165]
[1765211529153,0.0206,90421.0,90420.0,0.22119]
[1765211529566,0.06698,90421.0,90420.0,0.22119]
[1765211529909,0.13668,90421.0,90420.0,0.22119]
[1765211530068,0.06698,90421.0,90420.0,0.22119]
[1765211530273,0.13668,90421.0,90420.0,0.22119]
[1765211530474,0.06698,90421.0,90420.0,0.22119]
[1765211530914,0.003,90421.0,90420.0,0.31409149]
[1765211531130,0.001,90421.0,90420.0,0.22119]
[1765211531508,0.003,90421.0,90420.0,0.22262287]
[1765211532061,0.001,90421.0,90420.0,0.24482287]
[1765211532213,0.001,90421.0,90420.0,0.34008765]
[1765211532370,0.003,90421.0,90420.0,0.34008765]
[1765211532574,0.003,90421.0,90420.0,0.31788765]
[1765211532793,0.001,90421.0,90420.0,0.31788765]
[1765211533753,0.00011684,90423.0,90422.0,0.2211851]
[1765211533944,0.00011684,90423.0,90422.0,0.32694711]
[1765211535527,0.00011684,90423.0,90422.0,0.32794711]
[1765211535908,0.00011684,90423.0,90422.0,0.35014711]
[1765211537259,0.00011684,90423.0,90422.0,0.32794711]
[1765211537476,0.00011684,90423.0,90422.0,0.35014711]
[1765211537678,0.00011684,90423.0,90422.0,0.34914711]
[1765211537881,0.00011684,90423.0,90422.0,0.22261797]
[1765211538099,0.00011684,90423.0,90412.0,0.22120929]
[1765211538297,0.00011684,90423.0,90410.0,0.00099999]
[1765211538298,0.0176,90422.0,90420.0,0.23224902]
[1765211538513,0.00011684,90423.0,90422.0,0.2211851]
[1765211538778,0.00011684,90423.0,90422.0,0.2251851]
[1765211539048,0.00011684,90423.0,90422.0,0.27254754]
[1765211539196,0.00011684,90423.0,90422.0,0.22761797]
[1765211540027,0.00011684,90423.0,90422.0,0.24981797]
[1765211540237,0.00011684,90423.0,90422.0,0.24581797]
[1765211540451,0.00011684,90423.0,90422.0,0.24481797]
[1765211540669,0.00011684,90423.0,90422.0,0.24581797]
[1765211540882,0.00011684,90423.0,90422.0,0.34474222]
[1765211541290,0.00011684,90423.0,90422.0,0.34674222]
[1765211541698,0.00011684,90423.0,90422.0,0.34774222]
[1765211541922,0.00023803,90448.0,90447.0,0.22112397]
[1765211542125,0.00062734,90448.0,90447.0,0.24920056]
[1765211542328,0.00062734,90448.0,90447.0,0.57220056]
[1765211542572,0.00062734,90448.0,90447.0,0.59440056]
[1765211543276,0.00062734,90448.0,90447.0,0.24920056]
[1765211543608,0.00062734,90448.0,90447.0,0.25220056]
[1765211544238,0.00262734,90448.0,90447.0,0.22555684]
[1765211544473,0.11758734,90448.0,90447.0,0.003]
[1765211544750,0.11558734,90448.0,90447.0,0.003]
[1765211544953,0.01105656,90444.0,90441.0,0.01105693]
[1765211545125,0.01105656,90444.0,90437.0,0.01105742]
[1765211545126,0.01105717,90439.0,90433.0,0.01105791]
[1765211545308,0.01105766,90435.0,90430.0,0.01205826]
[1765211545508,0.02865754,90436.0,90430.0,0.01205826]
[1765211545731,0.04534,90431.0,90430.0,0.23322259]
[1765211546159,0.04534,90431.0,90430.0,0.2322226]
[1765211546359,0.11496,90431.0,90430.0,0.2322226]
[1765211546976,0.04534,90431.0,90430.0,0.2322226]
[1765211547201,0.0176,90436.0,90435.0,0.22115331]
[1765211547566,0.06294,90436.0,90435.0,0.22115331]
[1765211547771,0.13256,90436.0,90435.0,0.22115331]
[1765211548435,0.01105803,90432.0,90424.0,0.01105901]
[1765211548643,0.01105913,90423.0,90419.0,0.01105962]
[1765211548850,0.04534,90419.0,90417.0,0.2211952]
[1765211549169,0.01105864,90427.0,90422.0,0.23224375]
[1765211549170,0.23223496,90426.0,90422.0,0.23224375]
[1765211549368,0.23223496,90426.0,90420.0,0.0110595]
[1765211549369,0.003,90436.0,90430.0,0.01105827]